bitfinex/quotes_ETHUSD_20251017
["timestamp","ask_amount","ask_price","bid_price","bid_amount"]
[1760729304077,0.002,3839.3,3839.2,9.43988912]
[1760729304580,0.002,3839.3,3839.2,9.56948912]
[1760729305729,0.002,3839.3,3839.2,9.40978912]
[1760729310988,0.002,3839.3,3839.2,9.83788912]
[1760729311601,0.002,3839.3,3839.2,9.40978912]
[1760729311914,0.002,3839.3,3839.2,9.83788912]
[1760729312120,0.002,3839.3,3839.2,9.40978912]
[1760729312299,0.002,3839.3,3839.2,9.83788912]
[1760729312701,0.002,3839.6,3839.5,2.60450579]
[1760729313013,0.002,3839.6,3839.5,9.94446236]
[1760729313197,0.002,3839.6,3839.5,10.07406236]
[1760729313400,0.002,3839.6,3839.5,10.72939288]
[1760729313798,0.4651,3839.6,3839.5,10.72939288]
[1760729314732,0.002,3839.6,3839.5,10.72939288]
[1760729319000,0.002,3840.1,3840.0,2.60416666]
[1760729319199,0.002,3840.1,3840.0,9.08511901]
[1760729319399,0.002,3840.1,3840.0,9.21471901]
[1760729319711,0.4651,3840.1,3840.0,9.21471901]
[1760729320033,0.4651,3840.1,3840.0,8.69387776]
[1760729326533,0.002,3840.1,3840.0,8.69387776]
[1760729328627,0.002,3840.1,3840.0,2.73376666]
[1760729328936,0.4651,3840.1,3840.0,8.69387776]
[1760729329548,0.002,3840.1,3840.0,8.69387776]
[1760729329724,0.4651,3840.1,3840.0,8.69387776]
[1760729332147,0.002,3840.1,3840.0,8.69387776]
[1760729333268,0.002,3840.1,3840.0,9.82369012]
[1760729333552,0.002,3840.5,3840.2,2.60403104]
[1760729333950,0.002,3840.5,3840.2,3.17143104]
[1760729334450,0.002,3840.5,3840.4,2.60389542]
[1760729334652,0.002,3840.5,3840.4,8.56400652]
[1760729334952,0.002,3840.5,3840.4,9.88312028]
[1760729335138,0.002,3840.5,3840.4,10.32092028]
[1760729335537,0.002,3840.5,3840.4,9.88312028]
[1760729336356,0.002,3840.5,3840.4,10.32092028]
[1760729336819,0.002,3840.9,3840.6,2.60375982]
[1760729337024,0.002,3840.9,3840.6,4.02582783]
[1760729339128,0.002,3840.7,3840.6,4.46362783]
[1760729340577,0.002,3840.7,3840.6,4.02582783]
[1760729345453,0.4538,3840.7,3840.6,4.02582783]
[1760729346857,0.002,3840.7,3840.6,4.02582783]
[1760729347274,0.002,3840.7,3840.6,4.05186542]
[1760729349089,0.002,3840.7,3840.6,4.02582783]
[1760729349604,0.4538,3840.7,3839.8,2.60426816]
[1760729349889,0.4518,3840.6,3840.5,2.60382762]
[1760729353203,0.002,3840.7,3840.6,2.60375982]
[1760729353362,0.002,3840.7,3840.6,3.9809254]
[1760729353703,0.002,3840.7,3840.6,2.60375982]
[1760729354499,0.4538,3840.7,3840.6,2.60375982]
[1760729354697,0.002,3840.7,3840.6,2.60375982]
[1760729355490,0.2302,3840.7,3840.6,2.60375982]
[1760729355793,0.682,3840.7,3840.6,2.60375982]
[1760729359661,0.002,3840.7,3840.6,2.60375982]
[1760729360392,0.4538,3840.7,3840.6,2.60375982]
[1760729364908,0.4538,3840.7,3840.2,2.60396806]
[1760729365109,0.4538,3840.7,3840.5,2.60378514]
[1760729365110,0.4648,3840.6,3840.5,2.60378514]
[1760729366514,0.4648,3840.6,3840.5,2.60478514]
[1760729367622,0.002,3840.7,3840.6,2.60375982]
[1760729371800,0.4668,3840.7,3840.6,2.60375982]
[1760729372022,0.6923,3840.7,3840.6,2.60375982]
[1760729372636,0.6923,3840.7,3840.5,0.001]
[1760729372793,0.1296,3840.6,3840.5,2.60478206]
[1760729372999,0.5944,3840.6,3840.5,2.60478206]
[1760729376127,0.002,3840.7,3840.6,2.60375982]
[1760729376914,0.4668,3840.7,3840.6,2.60375982]
[1760729377119,0.002,3840.7,3840.6,2.60375982]
[1760729379148,0.4668,3840.7,3840.6,2.60375982]
[1760729379554,0.002,3840.7,3840.6,2.60375982]
[1760729390163,0.002,3840.7,3840.6,3.06545982]
[1760729390371,0.002,3840.7,3840.6,4.17527046]
[1760729391961,0.002,3840.7,3840.6,3.71357046]
[1760729392160,0.4537,3840.7,3840.6,2.60375982]
[1760729392750,0.4537,3840.7,3840.5,2.60482542]
[1760729392948,0.002,3840.7,3840.6,2.60375982]
[1760729393143,0.002,3840.7,3840.5,2.60480461]
[1760729393383,0.1296,3840.6,3840.5,2.60480461]
[1760729393692,0.5813,3840.6,3840.5,2.60480461]
[1760729394289,0.62668353,3840.6,3840.5,2.60480461]
[1760729397582,0.17498353,3840.6,3840.5,2.60480461]
[1760729400076,0.62668353,3840.6,3840.5,2.60480461]
[1760729400261,0.17498353,3840.6,3840.5,2.60480461]
[1760729400468,0.62668353,3840.6,3840.5,2.60482762]
[1760729400674,5.92494806,3840.6,3840.5,0.001]
[1760729400862,6.71470346,3840.6,3840.5,0.001]
[1760729401073,0.96473893,3840.6,3840.5,0.001]
[1760729401272,0.17498353,3840.6,3840.5,2.60482762]
[1760729401488,0.5813,3840.6,3840.5,0.001]
[1760729402196,13.05099992,3840.6,3840.5,0.001]
[1760729402379,23.09264282,3840.6,3840.5,0.001]
[1760729402580,22.22529891,3840.6,3840.5,0.001]
[1760729402759,19.98639311,3840.6,3840.5,0.001]
[1760729402958,20.03508893,3840.6,3840.5,0.001]
[1760729403265,8.69376193,3840.6,3840.5,0.001]
[1760729403471,38.69376193,3840.6,3840.5,0.001]
[1760729403772,38.73915687,3840.6,3840.5,0.001]
[1760729404160,39.14767941,3840.6,3840.5,0.001]
[1760729405058,32.39625141,3840.6,3840.5,0.001]
[1760729405390,17.77491357,3840.6,3840.5,0.001]
[1760729405608,11.32875057,3840.6,3840.5,0.001]
[1760729405763,10.19267757,3840.6,3840.5,0.001]
[1760729405965,10.16395786,3840.6,3840.5,0.001]
[1760729406274,7.56019804,3840.6,3840.5,0.001]
[1760729406468,19.04860704,3840.6,3840.5,0.001]
[1760729406793,8.00478404,3840.6,3840.5,0.001]
[1760729407090,6.6073611,3840.6,3840.5,0.001]
[1760729407340,7.81978366,3840.6,3840.5,0.001]
[1760729407512,23.16269766,3840.6,3840.5,0.001]
[1760729407824,13.12385819,3840.6,3840.5,0.001]
[1760729408618,32.25945301,3840.6,3840.5,0.001]
[1760729408818,21.66913719,3840.6,3840.5,0.001]
[1760729409203,16.85552119,3840.6,3840.5,0.001]
[1760729409611,23.67834519,3840.6,3840.5,0.001]
[1760729409810,26.28210501,3840.6,3840.5,0.001]
[1760729410024,26.32749805,3840.6,3840.5,0.001]
[1760729410726,39.27784005,3840.6,3840.5,0.001]
[1760729410955,33.72345805,3840.6,3840.5,0.001]
[1760729411231,33.72345805,3840.6,3839.7,0.001]
[1760729411232,1.728,3840.1,3839.7,0.001]
[1760729411404,39.84996683,3839.8,3839.7,0.001]
[1760729411604,2.60449129,3839.6,3838.9,0.001]
[1760729411926,34.33257363,3839.4,3838.9,0.001]
[1760729412127,16.81878209,3839.4,3838.9,0.001]
[1760729412291,19.88965572,3839.4,3838.9,0.001]
[1760729412629,33.75426272,3839.4,3838.9,0.001]
[1760729413125,31.58372188,3839.4,3838.9,0.001]
[1760729413427,36.69643454,3839.0,3838.9,0.001]
[1760729413625,42.14472645,3839.0,3838.9,0.001]
[1760729413817,42.61102645,3839.0,3838.9,0.001]
[1760729414014,48.274145,3839.0,3838.9,0.001]
[1760729414216,48.274145,3839.0,3838.5,0.001]
[1760729414217,27.20893044,3838.6,3838.5,0.001]
[1760729414420,34.60004899,3838.6,3838.5,0.001]
[1760729414624,2.60571522,3837.8,3836.3,0.6]
[1760729414837,1.728,3837.1,3836.5,0.4367]
[1760729415548,0.6,3837.0,3836.5,0.4367]
[1760729415728,0.64542602,3837.0,3836.9,2.60627068]
[1760729415923,0.64542602,3837.0,3836.9,3.04297068]
[1760729416129,0.04542602,3837.0,3836.9,3.04297068]
[1760729416540,0.04542602,3837.0,3836.3,0.6]
[1760729416728,0.04542602,3837.0,3836.6,2.6064081]
[1760729417251,0.04542602,3837.0,3836.4,3.04329843]
[1760729417252,0.04542602,3837.0,3836.4,0.4367]
[1760729417445,0.02600592,3836.9,3836.3,0.6]
[1760729417651,0.04542602,3837.0,3836.4,2.60661036]
[1760729417855,0.04542602,3837.0,3836.3,0.6]
[1760729418020,0.02600592,3836.9,3836.6,2.6064619]
[1760729418216,5.29826453,3836.9,3836.3,0.6]
[1760729418420,5.82809098,3836.9,3836.5,2.60650572]
[1760729418829,5.82809098,3836.9,3836.6,2.60647248]
[1760729419150,5.82809098,3836.9,3836.5,2.60753703]
[1760729419459,5.82809098,3836.9,3836.5,0.001]
[1760729419641,5.82809098,3836.9,3836.6,2.60645296]
[1760729420216,1.728,3837.1,3837.0,2.60620276]
[1760729420446,1.728,3837.1,3836.7,0.4367]
[1760729420447,1.728,3837.1,3836.9,2.60626104]
[1760729420653,1.728,3837.1,3836.7,2.6064009]
[1760729420859,5.29826453,3836.9,3836.5,0.001]
[1760729421052,5.29826453,3836.6,3836.5,0.001]
[1760729421722,5.89826453,3836.6,3836.5,0.001]
[1760729422342,5.94369297,3836.6,3836.5,0.001]
[1760729422528,0.64542844,3836.6,3836.5,2.60754242]
[1760729422729,0.64542844,3836.6,3836.5,0.001]
[1760729423133,8.50395227,3836.6,3836.5,0.001]
[1760729423463,8.61469274,3836.6,3836.5,0.001]
[1760729423619,2.37342844,3836.6,3836.5,2.60754242]
[1760729423821,2.37342844,3836.6,3836.5,0.001]
[1760729424263,1.77342844,3836.6,3836.5,0.001]
[1760729425156,1.77342844,3836.6,3836.5,2.60754242]
[1760729426522,0.40884572,3836.9,3836.6,2.60647448]
[1760729426828,0.53844572,3836.9,3836.8,2.60633861]
[1760729429641,0.58387216,3836.9,3836.8,2.60633861]
[1760729429846,19.37916616,3836.9,3836.5,0.001]
[1760729430187,1.728,3836.4,3836.1,0.001]
[1760729430344,30.59950053,3836.2,3836.1,0.001]
[1760729430548,20.10583053,3836.2,3836.1,0.001]
[1760729430751,1.728,3836.2,3836.1,0.001]
[1760729430979,6.09619608,3836.2,3836.1,0.001]
[1760729431177,2.88273308,3836.2,3836.1,0.001]
[1760729431489,1.728,3836.2,3836.1,0.001]
[1760729431672,1.728,3836.2,3836.1,3.20491421]
[1760729431978,0.0454,3836.6,3836.5,2.60654242]
[1760729432466,0.0454,3836.6,3836.5,3.04394242]
[1760729432977,0.0454,3836.6,3836.5,2.60654242]
[1760729433179,0.0454,3836.6,3836.5,3.04394242]
[1760729434083,0.0454,3836.6,3836.5,2.60654242]
[1760729434267,0.0454,3836.6,3836.5,2.56111642]
[1760729434670,0.0454,3836.6,3836.1,0.1607]
[1760729434873,0.0454,3836.6,3836.5,2.60654242]
[1760729435074,0.0454,3836.6,3836.1,0.1607]
[1760729435273,0.0454,3836.6,3836.5,2.60654242]
[1760729435476,0.4315,3837.0,3836.6,2.60647245]
[1760729435781,0.81331264,3837.0,3836.1,0.1607]
[1760729435982,0.02600592,3836.9,3836.7,2.6063851]
[1760729436165,1.19274999,3837.4,3836.3,3.04407209]
[1760729436353,0.4315,3837.3,3836.3,3.04401329]
[1760729436551,2.877332,3837.1,3836.4,2.60660254]
[1760729436779,1.728,3837.0,3836.5,0.001]
[1760729436983,0.6764832,3837.0,3836.5,0.001]
[1760729437184,0.4315,3836.9,3836.5,0.001]
[1760729437392,0.84034416,3836.9,3836.5,0.001]
[1760729437571,4.33447448,3836.6,3836.5,0.001]
[1760729437772,20.6932714,3836.6,3836.5,0.001]
[1760729437970,21.09876548,3836.6,3836.5,0.001]
[1760729438174,23.73124501,3836.6,3836.5,0.001]
[1760729438670,23.73124501,3836.6,3836.1,0.001]
[1760729438671,34.33474625,3836.2,3836.1,0.001]
[1760729438871,26.27027066,3836.2,3836.1,0.001]
[1760729439099,6.650464,3836.2,3836.1,0.001]
[1760729439264,8.32187327,3836.2,3836.1,0.001]
[1760729439460,2.13700023,3836.2,3836.1,0.001]
[1760729439993,5.81108923,3836.2,3836.1,0.001]
[1760729440200,2.13700023,3836.2,3836.1,0.001]
[1760729440692,15.11770552,3836.2,3836.1,0.001]
[1760729440892,12.97195952,3836.2,3836.1,0.001]
[1760729441074,4.64986947,3836.2,3836.1,0.001]
[1760729441279,2.92117352,3836.2,3836.1,0.001]
[1760729441678,19.13140852,3836.2,3836.1,0.001]
[1760729441882,35.95941977,3836.2,3836.1,0.001]
[1760729442075,18.69316577,3836.2,3836.1,0.001]
[1760729442371,18.36332277,3836.2,3836.1,0.001]
[1760729442566,14.35806005,3836.2,3836.1,0.001]
[1760729442792,10.46807005,3836.2,3836.1,0.001]
[1760729442993,13.44649505,3836.2,3836.1,0.001]
[1760729443496,16.0532413,3836.2,3836.1,0.001]
[1760729443994,31.2294243,3836.2,3836.1,0.001]
[1760729444295,17.74299905,3836.2,3836.1,0.001]
[1760729444509,8.03892205,3836.2,3836.1,0.001]
[1760729444691,10.42702382,3836.2,3836.1,0.001]
[1760729444871,5.456956,3836.2,3836.1,0.001]
[1760729445389,0.4315,3837.2,3836.1,2.76750843]
[1760729445713,0.1296,3836.3,3836.2,0.4374]
[1760729446012,0.1296,3836.3,3836.2,3.04414625]
[1760729446500,0.56427346,3837.6,3836.3,2.6066783]
[1760729446700,6.512131,3837.7,3836.9,2.60621966]
[1760729446899,1.728,3837.4,3836.9,2.60621966]
[1760729447199,0.1296,3836.9,3836.7,0.4374]
[1760729447581,0.1296,3836.9,3836.8,2.60633861]
[1760729448407,0.1296,3836.9,3836.7,3.04380438]
[1760729448604,0.1296,3836.9,3836.4,3.04396539]
[1760729448793,0.1296,3836.4,3836.1,0.5981]
[1760729448975,0.1296,3836.4,3836.3,2.6066783]
[1760729449503,0.1296,3836.4,3836.3,3.0440783]
[1760729450272,0.40882001,3837.1,3836.8,2.60629062]
[1760729450477,0.1296,3836.7,3836.1,0.62376602]
[1760729450796,0.1296,3836.7,3836.6,2.60647448]
[1760729451181,0.1296,3836.7,3836.6,3.04387448]
[1760729452303,0.1296,3836.7,3836.4,2.60659614]
[1760729452502,11.583907,3836.9,3836.1,0.1607]
[1760729452703,1.728,3836.6,3836.1,0.001]
[1760729453013,3.45538921,3836.8,3836.1,0.001]
[1760729453014,1.728,3836.2,3836.1,0.001]
[1760729453322,1.728,3836.3,3836.1,0.001]
[1760729453528,6.994476,3836.4,3836.1,0.001]
[1760729453825,1.728,3836.3,3836.1,0.001]
[1760729454020,7.002076,3836.4,3836.1,0.001]
[1760729454220,0.7456176,3836.4,3836.1,0.001]
[1760729454421,0.4541,3836.6,3836.1,0.001]
[1760729454624,1.728,3836.5,3836.2,2.60668076]
[1760729454924,0.4541,3836.9,3836.4,2.60660392]
[1760729455224,0.4541,3836.9,3836.3,2.6066783]
[1760729455424,0.4541,3836.9,3836.2,2.60674307]
[1760729455425,0.4541,3836.9,3836.5,2.60653765]
[1760729455627,0.4541,3836.9,3836.4,2.60755872]
[1760729455825,0.002,3836.7,3836.4,0.001]
[1760729456014,0.4561,3836.7,3836.4,0.001]
[1760729456932,0.002,3836.7,3836.4,0.001]
[1760729457227,0.002,3836.7,3836.4,2.60761036]
[1760729457800,0.002,3836.7,3836.4,0.001]
[1760729458023,1.728,3836.5,3836.4,0.001]
[1760729458229,0.4541,3836.6,3836.4,0.001]
[1760729458429,0.4541,3836.5,3836.4,0.001]
[1760729458933,0.40888611,3836.6,3836.4,0.001]
[1760729459096,0.48010592,3836.5,3836.4,0.001]
[1760729459434,0.4541,3836.5,3836.4,0.001]
[1760729459735,0.40888611,3836.6,3836.5,2.60654242]
[1760729459902,2.13688611,3836.6,3836.5,2.60654242]
[1760729461230,1.728,3836.5,3836.4,0.001]
[1760729461398,0.40888611,3836.6,3836.4,0.001]
[1760729461600,0.40888611,3836.6,3836.5,2.60654242]
[1760729461834,0.002,3836.7,3836.6,2.60647448]
[1760729462242,0.002,3836.7,3836.4,0.001]
[1760729462450,6.842344,3836.5,3836.4,0.001]
[1760729462598,7.1433654,3836.5,3836.4,0.001]
[1760729462799,5.4760044,3836.5,3836.4,0.001]
[1760729463603,16.8366314,3836.5,3836.4,0.001]
[1760729463849,12.5652364,3836.5,3836.4,0.001]
[1760729464144,10.4408874,3836.5,3836.4,0.001]
[1760729464347,9.4869554,3836.5,3836.4,0.001]
[1760729464507,32.94564482,3836.5,3836.4,0.001]
[1760729464707,23.81235082,3836.5,3836.4,0.001]
[1760729464909,20.9330804,3836.5,3836.4,0.001]
[1760729465222,8.30062195,3836.5,3836.4,0.001]
[1760729465423,10.90716437,3836.5,3836.4,0.001]
[1760729465722,32.40023537,3836.5,3836.4,0.001]
[1760729465926,22.77935137,3836.5,3836.4,0.001]
[1760729466328,20.99480637,3836.5,3836.4,0.001]
[1760729466629,18.77603895,3836.5,3836.4,0.001]
[1760729466834,7.92352795,3836.5,3836.4,0.001]
[1760729467414,10.53007037,3836.5,3836.4,0.001]
[1760729467606,14.88927795,3836.5,3836.4,0.001]
[1760729467806,17.49582037,3836.5,3836.4,0.001]
[1760729468606,25.12590837,3836.5,3836.4,0.001]
[1760729468908,15.44132295,3836.5,3836.4,0.001]
[1760729469225,18.04786537,3836.5,3836.4,0.001]
[1760729469608,29.96580337,3836.5,3836.4,0.001]
[1760729469949,23.90545537,3836.5,3836.4,0.001]
[1760729470719,18.59862837,3836.5,3836.4,0.001]
[1760729471635,35.94710137,3836.5,3836.4,0.001]
[1760729471836,51.0714506,3836.5,3836.4,0.001]
[1760729472970,46.5862266,3836.5,3836.4,0.001]
[1760729473620,51.0714506,3836.5,3836.4,0.001]
[1760729474552,45.6256506,3836.5,3836.4,0.001]
[1760729474756,51.0714506,3836.5,3836.4,0.001]
[1760729475055,51.0734506,3836.5,3836.4,0.001]
[1760729475256,7.29369395,3836.5,3836.4,0.001]
[1760729475462,9.90023637,3836.5,3836.4,0.001]
[1760729475644,7.29369395,3836.5,3836.4,0.001]
[1760729475957,7.29369395,3836.5,3835.8,0.4317]
[1760729475958,1.728,3835.9,3835.2,0.4317]
[1760729476166,4.728,3835.7,3835.6,2.60815403]
[1760729476461,0.0434,3836.1,3835.6,3.03985403]
[1760729476646,0.40894838,3835.9,3835.7,0.4317]
[1760729476834,0.1296,3835.7,3835.6,2.60815403]
[1760729477034,0.1296,3835.7,3835.6,0.001]
[1760729477827,0.1296,3835.7,3835.6,0.4327]
[1760729479048,0.1296,3835.7,3835.6,3.03985403]
[1760729480128,0.1296,3835.7,3835.6,0.4327]
[1760729480328,0.1296,3835.7,3835.6,3.03985403]
[1760729480931,0.1296,3835.7,3835.6,0.4327]
[1760729481154,0.1296,3835.7,3835.6,3.03985403]
[1760729481965,0.1296,3835.7,3835.6,2.99645403]
[1760729482562,0.40894838,3835.9,3835.7,2.60708605]
[1760729482563,0.04544536,3835.8,3835.7,2.60708605]
[1760729483155,0.002,3836.5,3836.4,2.60661036]
[1760729483533,0.04743605,3836.5,3836.4,2.60661036]
[1760729483936,0.04743605,3836.5,3836.4,3.04301036]
[1760729484238,0.002,3836.5,3836.4,3.06907646]
[1760729484553,0.002,3836.5,3836.4,3.62231737]
[1760729486249,0.002,3836.5,3836.2,2.60674283]
[1760729486451,0.002,3836.5,3836.1,0.1173]
[1760729486648,0.002,3836.5,3835.7,2.60704565]
[1760729486867,0.002,3836.5,3836.0,2.60686555]
[1760729487045,0.02800592,3836.5,3836.0,2.60686555]
[1760729487243,0.4412,3836.4,3836.0,2.60686555]
[1760729487572,0.02600592,3836.3,3835.5,0.4364]
[1760729487774,8.137973,3836.2,3835.1,2.76813499]
[1760729487972,7.130973,3836.2,3835.8,2.60701308]
[1760729488174,0.002,3836.5,3836.1,0.1173]
[1760729488345,0.002,3836.5,3836.3,2.60665305]
[1760729488545,0.002,3836.5,3836.4,2.60661036]
[1760729489544,0.04743705,3836.5,3836.4,3.04301036]
[1760729489897,0.04743705,3836.5,3836.4,3.61971602]
[1760729490364,0.04743705,3836.5,3836.4,2.60661036]
[1760729491776,0.04743705,3836.5,3836.1,0.1173]
[1760729491979,0.04743705,3836.5,3835.6,3.04352468]
[1760729492448,0.1296,3836.3,3836.2,2.60669793]
[1760729492644,0.4412,3836.3,3836.1,2.60676287]
[1760729493182,0.04743705,3836.5,3835.3,2.73692673]
[1760729493477,0.1296,3836.0,3835.6,0.001]
[1760729493682,0.1296,3836.0,3835.9,2.60695012]
[1760729494085,0.17504117,3836.0,3835.9,2.60695012]
[1760729494887,0.17504117,3836.0,3835.9,3.04335012]
[1760729495086,0.04544117,3836.0,3835.9,3.06941962]
[1760729495387,0.04544117,3836.0,3835.9,3.62406069]
[1760729497659,0.04544117,3836.0,3835.9,3.65013019]
[1760729497991,0.04544117,3836.0,3835.9,3.62406069]
[1760729498457,0.002,3836.5,3836.4,2.60661036]
[1760729499286,0.002,3836.5,3836.4,3.04301036]
[1760729499493,0.002,3836.5,3836.4,3.61971055]
[1760729500491,0.002,3836.5,3836.4,2.60661036]
[1760729501774,0.002,3836.5,3836.4,3.04301036]
[1760729504110,0.002,3836.7,3836.6,2.60647448]
[1760729505285,0.002,3836.7,3836.6,2.63253922]
[1760729505889,0.002,3836.7,3836.6,2.60647448]
[1760729506087,0.002,3836.7,3836.6,3.12777617]
[1760729506811,0.002,3836.7,3836.6,3.25737617]
[1760729507402,0.4432,3836.7,3835.1,0.1607]
[1760729507713,7.154964,3836.4,3835.2,2.60740772]
[1760729507891,0.1296,3836.0,3835.9,2.60694791]
[1760729508089,0.5708,3836.0,3835.9,2.60694791]
[1760729509013,0.5708,3836.0,3835.1,2.60742986]
[1760729509219,0.4412,3836.0,3835.7,2.60703264]
[1760729509415,0.4412,3835.9,3835.8,2.60701809]
[1760729509621,0.6558,3835.9,3835.8,2.60701809]
[1760729510003,0.1296,3835.8,3835.6,2.60813456]
[1760729510205,0.4412,3835.7,3835.6,0.001]
[1760729510411,0.4412,3835.7,3835.6,2.60815403]
[1760729511311,0.4412,3835.7,3835.6,0.001]
[1760729511510,0.4412,3835.7,3835.6,2.60815403]
[1760729512828,0.26004431,3835.9,3835.8,2.60701809]
[1760729513644,0.71384431,3835.9,3835.8,2.60701809]
[1760729514339,0.71384431,3835.9,3835.6,2.60813657]
[1760729514340,0.1296,3835.8,3835.6,2.60813657]
[1760729514638,0.4538,3835.7,3835.6,2.60813657]
[1760729514949,0.26004431,3835.9,3835.8,2.60701809]
[1760729515146,0.71384431,3835.9,3835.8,2.60701809]
[1760729515514,0.1296,3835.8,3835.6,0.001]
[1760729515711,0.26004431,3835.9,3835.6,2.60814531]
[1760729515940,0.26004431,3835.9,3835.8,2.60701809]
[1760729516142,0.04544431,3835.9,3835.8,2.60701809]
[1760729519461,0.04544431,3835.9,3835.8,3.61000495]
[1760729519643,0.04544431,3835.9,3835.8,3.17230495]
[1760729520255,0.04544431,3835.9,3835.8,2.60701809]
[1760729523234,0.04544431,3835.9,3835.7,2.60708605]
[1760729523442,0.4289,3835.8,3835.7,2.60708605]
[1760729523668,0.1296,3835.8,3835.7,2.60708605]
[1760729523884,0.04544431,3835.9,3835.8,2.60701809]
[1760729525373,0.04544431,3835.9,3835.6,0.001]
[1760729525374,0.47434431,3835.9,3835.6,0.001]
[1760729525550,5.23135892,3835.8,3835.6,0.001]
[1760729525860,3.70175332,3835.7,3835.6,0.001]
[1760729526067,3.15665924,3835.7,3835.6,0.001]
[1760729526252,4.88465924,3835.7,3835.6,0.001]
[1760729526458,4.85865332,3835.7,3835.6,0.001]
[1760729527521,21.21796432,3835.7,3835.6,0.001]
[1760729527655,21.62695305,3835.7,3835.6,0.001]
[1760729527855,21.07443605,3835.7,3835.6,0.001]
[1760729528367,22.43445205,3835.7,3835.6,0.001]
[1760729528565,21.88265405,3835.7,3835.6,0.001]
[1760729528987,21.46625405,3835.7,3835.6,0.001]
[1760729529355,3.09376905,3835.7,3835.6,0.001]
[1760729529551,21.71870439,3835.7,3835.6,0.001]
[1760729529867,20.62970439,3835.7,3835.6,0.001]
[1760729530580,24.36826839,3835.7,3835.6,0.001]
[1760729530978,23.40903039,3835.7,3835.6,0.001]
[1760729531395,3.13921939,3835.7,3835.6,0.001]
[1760729531594,49.69051654,3835.7,3835.6,0.001]
[1760729531906,48.72764157,3835.7,3835.6,0.001]
[1760729532495,51.92805857,3835.7,3835.6,0.001]
[1760729532683,42.35934957,3835.7,3835.6,0.001]
[1760729533004,13.05749534,3835.7,3835.6,0.001]
[1760729533184,14.36344487,3835.7,3835.6,0.001]
[1760729533389,9.89829987,3835.7,3835.6,0.001]
[1760729533609,23.28683587,3835.7,3835.6,0.001]
[1760729533909,14.90725887,3835.7,3835.6,0.001]
[1760729534105,3.07939987,3835.7,3835.6,0.001]
[1760729534306,20.37498534,3835.7,3835.6,0.001]
[1760729534507,40.68328859,3835.7,3835.6,0.001]
[1760729534908,34.88155059,3835.7,3835.6,0.001]
[1760729535532,53.51085159,3835.7,3835.6,0.001]
[1760729535691,59.49450617,3835.7,3835.6,0.001]
[1760729535884,56.88742012,3835.7,3835.6,0.001]
[1760729536085,57.29648162,3835.7,3835.6,0.001]
[1760729536279,57.25103128,3835.7,3835.6,0.001]
[1760729538113,59.85811733,3835.7,3835.6,0.001]
[1760729538821,57.25103128,3835.7,3835.6,0.001]
[1760729539132,50.86103128,3835.7,3835.6,0.001]
[1760729539492,53.51357606,3835.7,3835.6,0.001]
[1760729539698,53.88752409,3835.7,3835.6,0.001]
[1760729540831,21.28043804,3835.7,3835.6,0.001]
[1760729540998,53.88752409,3835.7,3835.6,0.001]
[1760729541893,53.88752409,3835.7,3833.7,2.60841919]
[1760729541894,1.728,3835.2,3833.7,2.60841919]
[1760729542093,0.1304,3833.8,3833.6,2.60850555]
[1760729542326,1.728,3834.9,3833.2,2.73915787]
[1760729542497,0.17586375,3833.8,3833.7,2.60844614]
[1760729542904,0.1304,3833.8,3833.7,3.04614614]
[1760729543109,0.17586305,3833.8,3833.7,3.04614614]
[1760729545032,0.04546305,3833.8,3833.5,2.55853954]
[1760729545327,0.04546305,3833.8,3833.3,0.4377]
[1760729545527,0.04546305,3833.8,3833.5,2.60857515]
[1760729545730,0.04546305,3833.8,3833.6,2.60849916]
[1760729546030,0.04546305,3833.8,3833.5,2.60856149]
[1760729546233,0.04546305,3833.8,3833.5,2.60851528]
[1760729546459,0.04546305,3833.8,3833.7,2.60844614]
[1760729547358,0.04546305,3833.8,3833.2,0.4377]
[1760729547726,0.04546305,3833.8,3833.7,2.60844614]
[1760729547927,0.04546305,3833.8,3833.7,3.04614614]
[1760729550087,0.85251707,3833.8,3833.0,0.1173]
[1760729550226,0.85251707,3833.8,3831.5,0.92023509]
[1760729550227,18.072426,3833.0,3831.8,2.60972494]
[1760729550426,18.072426,3833.0,3832.2,2.6094162]
[1760729550427,1.728,3833.0,3832.2,2.6094162]
[1760729550637,1.728,3833.4,3832.4,2.60931591]
[1760729550843,1.728,3833.0,3832.5,2.60924496]
[1760729551040,11.03530047,3833.8,3832.6,0.4377]
[1760729551244,1.728,3833.5,3832.8,2.60904429]
[1760729551459,1.728,3833.5,3833.0,2.60985985]
[1760729551667,0.508918,3833.5,3833.2,2.60876208]
[1760729551851,0.57070487,3834.3,3833.1,0.1173]
[1760729552177,0.12850487,3834.3,3833.3,0.4377]
[1760729552373,0.12850487,3834.3,3833.7,2.60839434]
[1760729552554,7.271285,3834.3,3833.7,2.60839434]
[1760729552757,0.36485402,3834.3,3833.6,0.4377]
[1760729552956,0.13337228,3834.6,3833.7,0.4377]
[1760729553154,0.36485402,3834.8,3834.2,2.60809128]
[1760729553331,0.04546737,3834.4,3834.2,2.60809128]
[1760729553954,0.04546737,3834.4,3834.1,2.7678562]
[1760729554151,0.04546737,3834.4,3834.0,2.60822566]
[1760729554786,0.45459177,3834.4,3833.0,0.001]
[1760729554952,0.04546737,3834.4,3834.3,2.76773797]
[1760729555157,0.04546737,3834.4,3834.3,3.76910447]
[1760729555370,0.04546737,3834.4,3834.3,3.7430241]
[1760729555589,0.1296,3834.7,3834.6,2.60783393]
[1760729555966,0.1296,3834.7,3834.6,3.04553393]
[1760729557198,0.1296,3834.7,3834.6,2.60783393]
[1760729557381,2.09871,3834.6,3833.1,0.1173]
[1760729557692,0.02600592,3834.5,3834.3,2.60798723]
[1760729557893,0.02600592,3834.7,3834.3,2.60798723]
[1760729558088,0.2346,3834.8,3834.4,2.60791105]